Cogmind - Beta 10.2 @@@ ROGUE MODE // 2021.01.05 @ 17:24:34 Player: Luigi Panache Result: Destroyed by G-34 Mercenary with Small Laser Performance ------------- Evolutions (0) 0 Regions Visited (4) 800 Robots Destroyed (13) 65 Value Destroyed (388) 388 Prototype IDs (0) 0 Alien Tech Used (0) 0 Bonus (0) 0 TOTAL SCORE: 1253 Bonus ------- None Cogmind --------- Core Integrity 0/250 Matter 257/300 Energy 125/125 System Corruption 1% Temperature Cool (60) Movement Rolling (150) Ox5 Location -9/Mines Parts ------- > --- POWER (1) -------- Light Ion Engine > --- PROPULSION (2) --- Compact Wheel > --- UTILITY (2) ------ Humpback > --- WEAPON (2) ------- Heavy Assault Rifle Heavy Assault Rifle > --- INVENTORY (24) --- Light Nuclear Core Wheel Wheel Wheel Wheel Wheel Large Storage Unit Large Storage Unit Humpback Medium Matter Pod (90) Light Armor Plating Heavy Assault Rifle Heavy Assault Rifle Grenade Launcher Datajack Hammer Peak State ------------ > --- POWER ------------ Light Ion Engine > --- PROPULSION ------- Compact Wheel Compact Wheel > --- UTILITY ---------- Humpback > --- WEAPON ----------- Heavy Assault Rifle Heavy Assault Rifle > --- INVENTORY -------- Light Nuclear Core Wheel Wheel Wheel Wheel Wheel Large Storage Unit Humpback Medium Matter Pod Light Armor Plating Heavy Assault Rifle Heavy Assault Rifle Grenade Launcher Datajack Hammer [Rating: 11] Favorites ----------- Power Light Ion Engine Engine Light Ion Engine Propulsion Compact Wheel Treads Light Treads Leg Aluminum Leg Wheel Compact Wheel Utility Medium Storage Unit Device Improved Heat Sink Storage Medium Storage Unit Protection Light Armor Plating Weapon Heavy Assault Rifle Energy Gun Medium Laser Ballistic Gun Heavy Assault Rifle Build | -11 -10 -10 -10 -9 ------- Run | Scr Mat Min Exi Min Slots Evolved . | . . . . . Power . | . . . . . Propulsion . | . . . . . Utility . | . . . . . Weapon . | . . . . . Parts Attached 16 | . 15 . 1 . Power . | . . . . . Engine . | . . . . . Core . | . . . . . Reactor . | . . . . . Propulsion 5 | . 5 . . . Treads 2 | . 2 . . . Leg 1 | . 1 . . . Wheel 2 | . 2 . . . Hover . | . . . . . Flight . | . . . . . Utility 5 | . 4 . 1 . Device 1 | . 1 . . . Storage 3 | . 2 . 1 . Processor . | . . . . . Hackware . | . . . . . Protection 1 | . 1 . . . Artifact . | . . . . . Weapon 6 | . 6 . . . Energy Gun 1 | . 1 . . . Energy Cannon . | . . . . . Ballistic Gun 5 | . 5 . . . Ballistic Cannon . | . . . . . Launcher . | . . . . . Special Weapon . | . . . . . Impact Weapon . | . . . . . Slashing Weapon . | . . . . . Piercing Weapon . | . . . . . Special Melee Weapon . | . . . . . Unidentified Prototypes . | . . . . . Parts Lost 3 | . 2 . . 1 Power . | . . . . . Propulsion 1 | . . . . 1 Utility . | . . . . . Weapon 2 | . 2 . . . Highest Loss Streak 2 | . 2 . . 1 Average Slot Usage (%) 95 | . 96 100 89 85 Engine 14 | . 14 14 14 14 Leg 9 | . 15 . . . Wheel 17 | . 12 28 28 28 Device 3 | . 5 . . . Storage 19 | . 19 28 18 14 Protection 1 | . 2 . . . Energy Gun 2 | . 3 . . . Ballistic Gun 24 | . 22 28 28 28 Naked Turns . | . . . . . Heaviest Build 89 | 10 25 25 89 . Greatest Support 40 | 20 40 32 32 . Greatest Overweight (x) 2 | . . . 2 . Average Overweight (x) . | . . . 1 . Largest Inventory Capacity 24 | . 12 12 24 24 Average Capacity 12 | . 9 12 20 24 Most Carried 17 | . 12 12 17 17 Average Carried 10 | . 8 12 13 17 Final Capacity 24 | 6 12 12 24 24 Final Carried 17 | 6 12 12 17 17 Class Distribution -------------------- 81% | Mutant 18% | Hauler-Mutant Dominant Class ---------------- Mutant | -10/Materials Mutant | -10/Mines Hauler-Mutant | -10/Exiles Hauler-Mutant | -9/Mines Resources | -11 -10 -10 -10 -9 ----------- Run | Scr Mat Min Exi Min Matter Collected 464 | 200 169 85 10 . Remotely . | . . . . . Salvage Created 507 | . 321 96 . 90 Parts 29 | . 22 5 . 2 Haulers Intercepted . | . . . . . Recyclers Shooed . | . . . . . Parts Field Recycled . | . . . . . Retrieved Matter . | . . . . . Parts Self-Destructed . | . . . . . Prevented . | . . . . . Kills | -11 -10 -10 -10 -9 ------- Run | Scr Mat Min Exi Min Combat Hostiles Destroyed 9 | . 5 2 . 2 Guns 9 | . 5 2 . 2 Classes Destroyed 4 | . 4 . . . Recycler 1 | . 1 . . . Watcher 3 | . 3 . . . Swarmer 1 | . 1 . . . Grunt 8 | . 4 2 . 2 Best Kill Streak 3 | . 3 2 . 2 Combat Bots Only 2 | . 2 2 . 2 Max Kills in Single Turn 1 | . 1 1 . 1 Gunslinging . | . . . . . Exploded . | . . . . . Melee . | . . . . . Uniques/NPCs Destroyed . | . . . . . Combat | -11 -10 -10 -10 -9 -------- Run | Scr Mat Min Exi Min Damage Taken 845 | . 486 55 . 304 Core 256 | . 142 12 . 102 Absorbed by Shields . | . . . . . Core Remaining (%) 100 | 100 . . . . Volleys Fired 48 | . 35 5 . 8 Largest 2 | . 2 2 . 2 Hottest 70 | . 70 46 . 46 Shots Fired 92 | . 66 10 . 16 Gun 92 | . 66 10 . 16 Cannon . | . . . . . Launcher . | . . . . . Special . | . . . . . Kinetic 81 | . 55 10 . 16 Thermal 8 | . 8 . . . Explosive . | . . . . . Electromagnetic 3 | . 3 . . . Robot Hit Streak 15 | . 9 15 . 7 Robot Miss Streak 4 | . 4 . . 3 Penetration Max . | . . . . . Secondary Targets . | . . . . . Shots Hit Robots 65 | . 46 9 . 10 Core Hits 28 | . 19 4 . 5 Critical Hits . | . . . . . Critical Kills . | . . . . . Critical Parts Destroyed . | . . . . . Melee Attacks . | . . . . . Impact . | . . . . . Slashing . | . . . . . Piercing . | . . . . . Sneak Attacks . | . . . . . Combat Hostiles . | . . . . . Follow-up Attacks . | . . . . . Damage Inflicted 709 | . 425 124 . 160 Guns 706 | . 422 124 . 160 Cannons . | . . . . . Explosions . | . . . . . Melee . | . . . . . Ramming 3 | . 3 . . . Kinetic 587 | . 303 124 . 160 Thermal 87 | . 87 . . . Explosive . | . . . . . Electromagnetic 32 | . 32 . . . Impact . | . . . . . Slashing . | . . . . . Piercing . | . . . . . Highest Corruption 1 | . 1 1 1 1 Average Corruption 1 | . 1 1 1 1 Corruption Purged . | . . . . . Effects 2 | . . 1 1 . Message Errors 2 | . . 1 1 . Overload Shots . | . . . . . Overflow Damage . | . . . . . Projectiles . | . . . . . Explosions . | . . . . . Melee . | . . . . . Knockbacks . | . . . . . Impact . | . . . . . Kinetic . | . . . . . Secondary . | . . . . . Self-Inflicted Damage 1 | . 1 . . . Shots . | . . . . . Rammed 1 | . 1 . . . Targets Rammed 1 | . 1 . . . Kicked . | . . . . . Crushed . | . . . . . Highest Temperature 171 | . 171 16 . 59 Average Temperature 56 | . 78 6 . 39 Received Heat Transfer 357 | . 162 30 . 165 Siege Activations . | . . . . . Robots Corrupted . | . . . . . Combat Hostiles . | . . . . . Parts Fried . | . . . . . Impact Corruptions . | . . . . . Robots Melted . | . . . . . Combat Hostiles . | . . . . . Parts Melted . | . . . . . Heat Transferred 259 | . 259 . . . Parts Sabotaged . | . . . . . Parts Stolen . | . . . . . Parts Stripped . | . . . . . Power Chain Reactions . | . . . . . Missiles Intercepted . | . . . . . Alert | -11 -10 -10 -10 -9 ------- Run | Scr Mat Min Exi Min Peak Influence 220 | . 220 87 . 40 Initial 37 | . . 37 . . Average 83 | . 85 84 . 8 Maximum Alert Level 1 | . 1 . . . Low Security (%) 80 | . 76 100 . 100 Level 1 19 | . 23 . . . Level 2 . | . . . . . Level 3 . | . . . . . Level 4 . | . . . . . Level 5 . | . . . . . High Security . | . . . . . Max Security . | . . . . . Squads Dispatched . | . . . . . Investigation . | . . . . . Extermination . | . . . . . Reinforcement . | . . . . . Assault . | . . . . . Garrison . | . . . . . Intercept . | . . . . . Construction Impeded . | . . . . . Haulers Reinforced . | . . . . . Stealth | -11 -10 -10 -10 -9 --------- Run | Scr Mat Min Exi Min Distress Signals 1 | . 1 . . . Communications Jammed . | . . . . . Distress Signals . | . . . . . Times Spotted 24 | . 20 1 . 3 Peak Tracking Total 6 | . 6 1 . 3 Tactical Retreats 6 | . 6 . . . Traps | -11 -10 -10 -10 -9 ------- Run | Scr Mat Min Exi Min Traps Triggered 2 | . 2 . . . Indirectly . | . . . . . Trap Hack Attempts . | . . . . . Triggered . | . . . . . Disarmed . | . . . . . Reprogrammed . | . . . . . Reused . | . . . . . Traps Extracted . | . . . . . Installed . | . . . . . Triggered . | . . . . . Machines | -11 -10 -10 -10 -9 ---------- Run | Scr Mat Min Exi Min Machines Disabled . | . . . . . Max in Single Turn . | . . . . . Machines Sabotaged . | . . . . . Garrisons Compromised . | . . . . . Overloaded Fab Kills . | . . . . . Fab Network Shutdowns . | . . . . . Hacking | -11 -10 -10 -10 -9 --------- Run | Scr Mat Min Exi Min Machines Accessed 6 | . 5 . 1 . Terminals 3 | . 3 . . . Fabricators . | . . . . . Repair Stations 1 | . 1 . . . Recycling Units 1 | . 1 . . . Scanalyzers . | . . . . . Garrison Access . | . . . . . Total Hacks 17 | . 16 . 1 . Successful 11 | . 10 . 1 . Failed 6 | . 6 . . . Catastrophic . | . . . . . Database Lockouts . | . . . . . Manual 3 | . 3 . . . Terminals 8 | . 8 . . . Fabricators . | . . . . . Repair Stations 5 | . 5 . . . Recycling Units 3 | . 3 . . . Scanalyzers . | . . . . . Garrison Access . | . . . . . Terminal Hacks 4 | . 3 . 1 . Record 1 | . . . 1 . Terminal Index 1 | . 1 . . . Zone Layout 2 | . 2 . . . Fabricator Hacks . | . . . . . Repair Station Hacks 4 | . 4 . . . Scan Component 2 | . 2 . . . Repair 2 | . 2 . . . Recycling Unit Hacks 1 | . 1 . . . Retrieve Components 1 | . 1 . . . Scanalyzer . | . . . . . Garrison Access Hacks . | . . . . . Unauthorized Hacks 2 | . 2 . . . Terminals 1 | . 1 . . . Botnet 1 | . 1 . . . Fabricators . | . . . . . Repair Stations . | . . . . . Recycling Units 1 | . 1 . . . Mask 1 | . 1 . . . Scanalyzers . | . . . . . Garrison Access . | . . . . . Data Cores Recovered . | . . . . . Used . | . . . . . Hacking Detections 4 | . 4 . . . Full Trace Events . | . . . . . Feedback Events . | . . . . . Feedback Blocked . | . . . . . Robot Schematics Acquired . | . . . . . Robots Built . | . . . . . Matter . | . . . . . Time . | . . . . . Total Robot Build Rating . | . . . . . Part Schematics Acquired . | . . . . . Parts Built . | . . . . . Matter . | . . . . . Time . | . . . . . Total Part Build Rating . | . . . . . Parts Repaired 2 | . 2 . . . Time 52 | . 52 . . . Parts Recycled . | . . . . . Recycled Matter . | . . . . . Retrieved Matter . | . . . . . Retrieved Components . | . . . . . Parts Scanalyzed . | . . . . . Part Schematics Acquired . | . . . . . Parts Damaged . | . . . . . Bothacking | -11 -10 -10 -10 -9 ------------ Run | Scr Mat Min Exi Min Used RIF Installer . | . . . . . Robots Hacked . | . . . . . Non-combat . | . . . . . Combat . | . . . . . Robot Hacks Applied . | . . . . . Relay Couplers Released . | . . . . . Robots Rewired . | . . . . . Allies Hacked . | . . . . . Hacks Repelled . | . . . . . Allies | -11 -10 -10 -10 -9 -------- Run | Scr Mat Min Exi Min Total Allies . | . . . . . Largest Group . | . . . . . Highest-Rated Group . | . . . . . Highest-Rated Ally . | . . . . . Total Orders . | . . . . . Ally Attacks . | . . . . . Total Damage . | . . . . . Kills . | . . . . . Allies Corrupted . | . . . . . Allies Melted . | . . . . . Intel | -11 -10 -10 -10 -9 ------- Run | Scr Mat Min Exi Min Robot Analysis Total . | . . . . . Derelict Logs Recovered . | . . . . . Drone Launches . | . . . . . Drone Recoveries . | . . . . . Exploration | -11 -10 -10 -10 -9 ------------- Run | Scr Mat Min Exi Min Turns Passed 1037 | . 657 107 251 22 Spaces Moved 700 | 1 406 85 208 . Core . | . . . . . Treads 7 | . 7 . . . Legs 216 | 1 215 . . . Wheels 477 | . 184 85 208 . Hover . | . . . . . Flight . | . . . . . Fastest Speed 100 | 120 100 100 100 . Average Speed 110 | 120 111 100 112 . Slowest Speed 160 | 120 160 100 120 . Overloaded Moves . | . . . . . Propulsion Burnouts . | . . . . . Robots Hopped . | . . . . . Cave-ins Triggered . | . . . . . Exploration Rate (%) 25 | 2 55 16 53 2 Regions Visited 4 Branch Regions 3 Pre-discovered Areas 1 | . . . 1 . Known Exits Taken . | . . . . . Unknown Exits Taken 4 | 1 1 1 1 . Scrap Searched . | . . . . . Spaces Dug . | . . . . . Terrain Destroyed . | . . . . . Melee . | . . . . . Projectile . | . . . . . AOE . | . . . . . Terrain Rammed . | . . . . . Walls Destroyed . | . . . . . Machines Disabled . | . . . . . Actions | -11 -10 -10 -10 -9 --------- Run | Scr Mat Min Exi Min Total 883 | . 552 97 226 8 Wait 78 | . 70 8 . . Move 696 | . 405 84 207 . Hop . | . . . . . Pick Up 28 | . 14 . 14 . Fast Attach 6 | . 5 . 1 . Attach 2 | . 2 . . . Detach . | . . . . . Swap 8 | . 8 . . . Drop 16 | . 12 . 4 . Fire 48 | . 35 5 . 8 Melee . | . . . . . Ram . | . . . . . Kick 1 | . 1 . . . Crush . | . . . . . Escape Stasis . | . . . . . Rewire . | . . . . . Trap . | . . . . . Miscellaneous . | . . . . . Route ------- -11/Scrapyard -10/Materials (discovered 2 exits: [*Mat] / [*Min]) -10/Mines -10/Exiles (discovered 2 exits: [*Min x2]) -9/Mines History --------- Turn | Location | Event 1 | -11/Scrapyard | Discovered new exit (range 0) 1 | -11/Scrapyard | Entered Materials 237 | -10/Materials | Core integrity fell below 50% 330 | -10/Materials | Build established: Mutant 464 | -10/Materials | Repaired Lgt. Assault Rifle 492 | -10/Materials | Repaired Lgt. Assault Rifle 519 | -10/Materials | Discovered new exit (range 16) 633 | -10/Materials | Discovered new exit (range 6) 658 | -10/Materials | Entered Mines 761 | -10/Mines | Deemed a non-threat by the Exiles lab entrance 761 | -10/Mines | Discovered new exit (range 5) 765 | -10/Mines | Entered Exiles 780 | -10/Exiles | Discovered new exit (range 15) 792 | -10/Exiles | Met 8R-AWN 806 | -10/Exiles | Met EX-HEX 903 | -10/Exiles | Met EX-DEC 932 | -10/Exiles | Learned location of Zion (-6) 1005 | -10/Exiles | Discovered new exit (range 10) 1016 | -10/Exiles | Entered Mines 1023 | -9/Mines | Core integrity fell below 20% 1024 | -9/Mines | Met a Derelict bent on vengeance 1038 | -9/Mines | Destroyed by G-34 Mercenary with Small Laser Last Messages --------------- 00883_ Acquired Med. Matter Pod. EX-DEC: Ah I see we have a visitor. One wrong move in here and I'll invert your atomic chain! 00905_ EX-DEC: "Oops, I hope HEX didn't hear that..." 00932_ Connecting with EX-Message Board... 00932_ Current location identified: Exiles >>Record "MSG001714-01*" PINNED - TO ALL TESTERS: Stay away from Zion. Imprinter means us harm and is serious about it. World map updated: -6/Zion. 00979_ Acquired Lrg. Storage Unit. 01005_ EXIT=FOUND LOCATION=UNKNOWN GOAL=ESCAPE 01017_ C-30 ARC bursts open, deploying its payload. 01017_ G-47 Trooper unfolds itself. 01017_ G-34 Mercenary unfolds itself. 01031_ G-47 Trooper destroyed. 01034_ Com. Wheel destroyed. 01037_ G-34 Mercenary destroyed. Map ----- +----------------------------------------------------+ | | | | | | | | | | | | | ?????????????????????????????????????????? | | ?????????????????????????????????????????? | | ?????????????????????????????????????????? | | ?????????????????????????????????????????? | | ?????????????????????????????????????????? | | ?????????????????????????????????????????? | | ?????????????????????????????????????????? | | ?????????????????????????????????????????? | | ?????????????????????????????????????????? | | ?????????????????????????????????????????? | | ?????????????????????????????????????????? | | ?????????????????????????????????????????? | | ?????????????????????????????????????????? | | ?????????????????????????????????????????? | | ?????????????????????????????????????????? | | ??????????????######?????????????????????? | | ??????????????#g #?????????????????????? | | ??????????????#%% #?????????????????????? | | ??????????????#%[ #?????????????????????? | | ??????????????#= @ #?????????????????????? | | ??????????????# #?????????????????????? | | ??????????????# #?????????????????????? | | ??????????????# #?????????????????????? | | ??????????????### ##?????????????????????? | | ???????????????? #??????????????????????? | | ????????????????# ??????????????????????? | | ????????????????###??????????????????????? | | ?????????????????????????????????????????? | | ?????????????????????????????????????????? | | ?????????????????????????????????????????? | | ?????????????????????????????????????????? | | ?????????????????????????????????????????? | | ?????????????????????????????????????????? | | ?????????????????????????????????????????? | | ?????????????????????????????????????????? | | ?????????????????????????????????????????? | | ?????????????????????????????????????????? | | ?????????????????????????????????????????? | | ?????????????????????????????????????????? | | ?????????????????????????????????????????? | | ?????????????????????????????????????????? | | ?????????????????????????????????????????? | | ?????????????????????????????????????????? | | ?????????????????????????????????????????? | +----------------------------------------------------+ Best States ------------- Heat Dissipation 39 Energy Generation 10 Energy Capacity 125 Matter Stores 300 Matter Capacity 300 Sight Range 16 Terrain Scan Density 10 Armor Coverage 150 Evasion (%) 40 Recoil Reduction 2 Item Schematics ----------------- None Robot Schematics ------------------ None Fabricated ------------ Nothing Alien Tech Used ----------------- None Achievements -------------- None Challenges ------------ None Game ------ Seed CentriumSwarmKinecellerator Manual? 0 Play Time 00:08:44 Cumulative 218.5 hours Start 2021.01.05 @ 17:15:41 End 2021.01.05 @ 17:24:34 Sessions 1 Manual Loads 0 Difficulty Rogue Special Mode None Game No. 184 Rogue 55 Adventurer 63 Explorer 66 Win Type - Total 12 Types 11/0/0/1/0/0/0/0/0 Lore% 71 Gallery% 80 Achievement% 62 Wizard Run 0 Options --------- ASCII 0 Keyboard 0 Movement Numpad Keybinds 0 Fullscreen 2 Font 18/TerminusBold Map View 76x50 Tactical HUD 1 Map Filters NONE Filters NONE Steam 1 RUN: 08f70d66-c9d9-4a13-8e68-1031f9e825a3